bitfinex-derivatives/quotes_SOLF0:USTF0_20251224
["timestamp","ask_amount","ask_price","bid_price","bid_amount"]
[1766588450798,3.41,121.67,121.61,0.05351348]
[1766588450799,0.06142262,121.64,121.61,0.05351348]
[1766588451194,0.00142262,121.64,121.61,3.35351348]
[1766588451805,0.00142262,121.64,121.62,3.3]
[1766588452104,0.00142262,121.64,121.63,3.3]
[1766588453807,0.00142262,121.64,121.63,4.94]
[1766588454710,63.8582,121.73,121.64,3.3]
[1766588454899,3.41,121.74,121.66,3.3]
[1766588455398,3.41,121.74,121.68,10.7007]
[1766588455605,3.41,121.76,121.7,0.06278735]
[1766588456710,3.41,121.79,121.72,3.3]
[1766588456907,3.41,121.79,121.74,0.05634245]
[1766588458008,10.8027,121.82,121.74,0.05634245]
[1766588458201,10.8027,121.82,121.77,0.06300405]
[1766588458402,10.8025,121.82,121.77,0.06300405]
[1766588458803,3.41,121.79,121.71,97.08]
[1766588459101,3.41,121.79,121.71,100.38]
[1766588459702,10.8044,121.79,121.71,100.38]
[1766588459907,0.05719958,121.76,121.74,0.05957036]
[1766588460114,0.05719958,121.76,121.69,97.08]
[1766588460305,3.41,121.77,121.69,100.38]
[1766588460612,3.41,121.74,121.66,3.3]
[1766588461110,0.05474472,121.71,121.69,0.06077799]
[1766588461914,3.39,121.77,121.69,3.39077799]
[1766588462109,3.39,121.77,121.69,3.33]
[1766588462309,3.39,121.77,121.66,3.33]
[1766588462310,3.39,121.76,121.66,3.33]
[1766588463007,3.39,121.76,121.7,0.06310474]
[1766588463611,10.7863,121.76,121.7,0.06310474]
[1766588463815,3.39,121.76,121.7,0.06310474]
[1766588464010,100.45,121.79,121.7,3.39310474]
[1766588464212,100.45,121.79,121.73,0.05716214]
[1766588464709,10.7824,121.82,121.74,3.33]
[1766588464908,10.7824,121.82,121.77,0.0589373]
[1766588465107,118.3849,121.82,121.77,0.0589373]
[1766588465307,7.3938,121.8,121.77,0.0589373]
[1766588465512,7.3938,121.8,121.71,3.33]
[1766588466515,7.3938,121.8,121.74,0.05644679]
[1766588466516,0.05718765,121.77,121.74,0.05644679]
[1766588467114,10.7827,121.82,121.74,3.38644679]
[1766588467313,10.7827,121.82,121.74,3.33]
[1766588467502,3.39,121.82,121.74,3.33]
[1766588467707,10.7825,121.82,121.74,3.33]
[1766588467916,3.39,121.82,121.74,3.33]
[1766588468117,3.39,121.81,121.72,97.04]
[1766588468319,10.7844,121.79,121.72,97.04]
[1766588468713,3.39,121.79,121.72,97.04]
[1766588469107,0.0626694,121.77,121.74,0.05401717]
[1766588469418,3.4526694,121.77,121.68,10.7305]
[1766588469713,1.79,121.74,121.67,97.02]
[1766588469905,1.79,121.73,121.65,3.33]
[1766588470420,0.06148746,121.7,121.68,0.05813373]
[1766588470714,0.06148746,121.7,121.63,97.02]
[1766588470914,0.06148746,121.7,121.63,100.35]
[1766588471309,0.06148746,121.7,121.63,107.7537]
[1766588471616,0.06148746,121.7,121.63,100.35]
[1766588471806,0.06148746,121.7,121.65,0.05777186]
[1766588473906,115.1189,121.69,121.6,3.33]
[1766588474110,1.68,121.68,121.6,3.33]
[1766588474316,97.04,121.69,121.61,3.33]
[1766588474916,1.68,121.71,121.64,0.06336558]
[1766588476119,0.06175168,121.69,121.64,0.06336558]
[1766588477223,0.06175168,121.69,121.64,3.39336558]
[1766588477614,97.04,121.73,121.65,7.4022]
[1766588477911,97.04,121.73,121.66,3.33]
[1766588478613,0.05684834,121.71,121.68,0.05692362]
[1766588480926,0.05684834,121.71,121.63,100.37]
[1766588481130,1.74,121.72,121.63,100.37]
[1766588481330,1.74,121.72,121.64,3.33]
[1766588481514,97.04,121.73,121.65,3.33]
[1766588481918,0.05455772,121.7,121.68,0.06232676]
[1766588482117,97.04,121.73,121.68,0.06232676]
[1766588483014,1.74146798,121.72,121.68,0.00232676]
[1766588483417,1.62,121.71,121.62,3.33]
[1766588484217,9.0198,121.7,121.62,3.33]
[1766588484422,0.05585165,121.68,121.65,0.05609701]
[1766588484622,0.05585165,121.68,121.65,0.05390703]
[1766588488227,1.62585165,121.68,121.59,104.4659]
[1766588488426,1.57,121.68,121.59,107.7959]
[1766588488630,1.57,121.68,121.6,3.33]
[1766588488832,7.4016,121.67,121.6,3.33]
[1766588489232,0.06106913,121.65,121.62,0.05427064]
[1766588491737,9.0207,121.69,121.62,3.61427064]
[1766588491934,9.0207,121.69,121.62,3.56]
[1766588492826,0.05259683,121.67,121.64,0.06254234]
[1766588498727,0.05259683,121.67,121.64,0.00254234]
[1766588499631,1.61,121.73,121.64,3.52254234]
[1766588499832,1.61,121.73,121.64,3.52]
[1766588500432,9.0081,121.73,121.65,7.4023]
[1766588500632,0.05717713,121.7,121.68,0.06008995]
[1766588501942,0.05717713,121.7,121.68,8.995e-05]
[1766588502441,1.60717713,121.7,121.64,3.52]
[1766588502634,1.60717713,121.7,121.6,3.52]
[1766588502836,1.55,121.7,121.6,3.52]
[1766588503342,0.0623794,121.66,121.64,0.05750778]
[1766588507650,1.55,121.7,121.64,3.57750778]
[1766588508747,0.0621477,121.68,121.64,3.57750778]
[1766588509150,0.0621477,121.68,121.64,0.05750778]
[1766588510850,7.3982,121.73,121.64,3.57750778]
[1766588511146,1.67,121.76,121.67,3.52]
[1766588511551,9.0668,121.75,121.67,10.9212]
[1766588511754,1.67,121.75,121.68,3.52]
[1766588511952,0.05192833,121.73,121.7,0.06180773]
[1766588517162,1.67,121.78,121.7,3.58180773]
[1766588517454,1.67,121.78,121.7,3.52]
[1766588518056,0.06218299,121.75,121.73,0.05723323]
[1766588518448,98.84,121.81,121.73,3.57723323]
[1766588518648,9.1734,121.81,121.74,3.52]
[1766588519050,7.3937,121.8,121.74,3.52]
[1766588519246,1.78,121.8,121.72,3.52]
[1766588519557,1.78,121.8,121.75,0.05645208]
[1766588520659,7.3946,121.79,121.75,0.05645208]
[1766588521062,1.78,121.8,121.75,0.05645208]
[1766588522861,9.1739,121.8,121.75,0.05645208]
[1766588523356,1.79,121.79,121.71,3.23]
[1766588524453,0.06162904,121.76,121.74,0.06267336]
[1766588525458,0.00162904,121.76,121.74,0.06267336]
[1766588525660,479.65721887,121.86,121.74,3.29267336]
[1766588525661,98.83,121.82,121.74,3.29267336]
[1766588525862,106.2226,121.82,121.75,3.23]
[1766588526555,106.2226,121.82,121.77,0.05846602]
[1766588528964,1.79,121.84,121.77,3.28846602]
[1766588529656,1.79,121.85,121.77,3.28846602]
[1766588529862,1.79,121.85,121.8,0.00237711]
[1766588530059,1.74,121.83,121.8,0.00237711]
[1766588530764,1.74,121.82,121.75,100.25]
[1766588530949,1.74,121.8,121.73,3.23]
[1766588531453,9.1341,121.8,121.73,3.23]
[1766588531762,0.05332778,121.78,121.75,0.06165327]
[1766588534657,97.02,121.81,121.75,3.29165327]
[1766588536661,97.02,121.81,121.75,10.68805327]
[1766588537665,1.74,121.83,121.76,3.23]
[1766588537863,6.78701887,121.86,121.78,0.06338655]
[1766588538066,98.74,121.85,121.81,0.06277236]
[1766588538561,1.79295763,121.84,121.77,3.23]
[1766588538962,7.392,121.83,121.77,3.23]
[1766588539169,1.68,121.82,121.75,100.23]
[1766588539569,0.06135288,121.8,121.77,0.05551647]
[1766588539868,7.3913,121.84,121.77,3.28551647]
[1766588540066,1.68,121.85,121.77,3.23]
[1766588540764,1.68,121.85,121.78,10.6247]
[1766588540961,14.17731887,121.86,121.8,0.05220252]
[1766588543774,6.78701887,121.86,121.8,0.05220252]
[1766588543966,5.04701887,121.86,121.8,3.28220252]
[1766588545665,5.04701887,121.86,121.81,10.6228]
[1766588546065,5.04701887,121.86,121.82,3.23]
[1766588546365,107.6983,121.89,121.83,0.05649895]
[1766588546774,7.3888,121.88,121.83,0.05649895]
[1766588546977,3.31,121.87,121.83,0.05649895]
[1766588552969,96.96,121.9,121.83,0.05649895]
[1766588552970,3.28,121.89,121.83,0.05649895]
[1766588554182,4.68858025,121.89,121.83,0.05649895]
[1766588554679,3.28,121.88,121.83,0.05649895]
[1766588557780,10.6688,121.88,121.83,0.05649895]
[1766588557981,3.47,121.86,121.8,100.48]
[1766588558176,4.87858025,121.85,121.8,96.98]
[1766588559083,3.47,121.82,121.76,3.5]
[1766588559486,1.40858025,121.83,121.76,3.5]
[1766588559676,4.87858025,121.83,121.77,7.3953]
[1766588559870,1.40858025,121.83,121.77,3.5]
[1766588560072,3.47,121.85,121.79,0.05567883]
[1766588560878,3.47,121.87,121.79,3.55567883]
[1766588561177,3.47,121.89,121.82,3.55461037]
[1766588561374,3.47,121.89,121.82,3.5]
[1766588561886,96.96,121.9,121.83,3.5]
[1766588562080,96.96,121.9,121.85,0.05273781]
[1766588562279,100.43,121.9,121.85,0.05273781]
[1766588563782,3.47,121.89,121.85,0.05273781]
[1766588564880,96.96,121.9,121.85,7.44313781]
[1766588565085,3.47,121.92,121.85,3.55273781]
[1766588565386,3.47,121.94,121.85,3.55273781]
[1766588565591,3.47,121.94,121.88,0.05543062]
[1766588567985,3.47,121.92,121.84,3.5]
[1766588568590,3.47,121.91,121.84,3.5]
[1766588569095,0.05543062,121.89,121.86,0.06012202]
[1766588571597,3.47,121.93,121.86,3.56012202]
[1766588572198,3.47,121.93,121.86,0.06012202]
[1766588572497,3.47,121.93,121.86,3.56012202]
[1766588573598,3.47,121.93,121.87,7.3891]
[1766588573796,3.47,121.93,121.89,0.06290308]
[1766588573999,3.47,121.93,121.89,0.00290308]
[1766588574202,3.47,121.92,121.89,0.00290308]
[1766588574500,3.47,121.92,121.84,3.5]
[1766588574690,10.857,121.91,121.84,3.5]
[1766588575510,0.05629138,121.89,121.86,0.05419305]
[1766588576695,3.47,121.94,121.86,3.55419305]
[1766588576899,3.47,121.94,121.86,3.5]
[1766588577114,3.47,121.94,121.87,7.3891]
[1766588577705,3.47,121.94,121.89,0.06028034]
[1766588577905,3.47,121.93,121.89,0.06028034]
[1766588579197,3.47,121.93,121.89,0.00028034]
[1766588579198,118.3628,121.93,121.89,0.00028034]
[1766588579403,3.47,121.92,121.83,3.5]
[1766588580005,3.47,121.9,121.83,3.5]
[1766588580402,3.52714637,121.88,121.81,3.5]
[1766588580599,3.47,121.87,121.8,96.9]
[1766588581418,3.39,121.85,121.75,118.5096]
[1766588581711,3.39,121.85,121.75,215.4096]
[1766588582011,3.39,121.87,121.78,3.46]
[1766588582598,0.06186031,121.84,121.81,0.05559664]
[1766588584405,3.39,121.8,121.71,3.46]
[1766588585612,0.0623115,121.77,121.74,0.05977527]
[1766588587617,125.7684,121.83,121.74,3.51977527]
[1766588587810,100.33,121.82,121.74,3.46]
[1766588588909,0.06162034,121.79,121.77,0.05888615]
[1766588589814,3.39,121.85,121.77,3.51888615]
[1766588590016,3.39,121.85,121.77,3.46]
[1766588590421,100.35,121.88,121.78,3.46]
[1766588590718,100.35,121.88,121.78,118.4877]
[1766588590920,0.0543348,121.84,121.78,3.46]
[1766588591919,3.4443348,121.84,121.8,0.00268138]
[1766588592118,3.39,121.84,121.8,0.00268138]
[1766588592619,3.39,121.87,121.8,0.00268138]
[1766588592819,100.35,121.87,121.8,0.00268138]
[1766588593119,0.05293151,121.85,121.8,0.00268138]
[1766588594811,0.05293151,121.85,121.8,3.46268138]
[1766588595010,3.39,121.9,121.81,3.46]
[1766588595224,3.39,121.9,121.83,3.46]
[1766588595408,100.35,121.93,121.83,118.4393]
[1766588595811,100.35,121.93,121.84,7.3911]
[1766588596012,0.05753158,121.9,121.87,0.05956659]
[1766588596312,3.39,121.94,121.87,0.05956659]
[1766588596512,3.39,121.94,121.86,3.46]
[1766588597020,3.39,121.93,121.83,107.7916]
[1766588597416,0.06057352,121.89,121.83,100.4]
[1766588598414,3.45057352,121.89,121.8,3.46]
[1766588598627,3.39,121.89,121.8,3.46]
[1766588599615,0.05266416,121.86,121.83,0.05928675]
[1766588602326,3.44266416,121.86,121.77,7.3951]
[1766588602536,3.44266416,121.86,121.75,100.38]
[1766588602537,3.39,121.85,121.75,100.38]
[1766588602830,10.7809,121.85,121.76,3.46]
[1766588603119,3.39,121.84,121.76,3.46]
[1766588603329,3.45096923,121.81,121.75,96.92]
[1766588603528,3.45096923,121.81,121.73,10.8577]
[1766588603724,3.39,121.81,121.74,3.46]
[1766588603929,3.39,121.84,121.75,3.46]
[1766588604629,0.06022861,121.81,121.78,0.0555194]
[1766588606520,0.00022861,121.81,121.78,0.0555194]
[1766588606719,3.39,121.87,121.78,3.5155194]
[1766588606930,3.39,121.87,121.78,3.46]
[1766588607429,3.39,121.87,121.78,10.8542]
[1766588607625,0.06183869,121.84,121.81,0.05314053]
[1766588607928,3.45183869,121.84,121.81,0.00314053]
[1766588608916,3.39,121.83,121.75,3.46]
[1766588609231,3.39,121.82,121.72,100.4]
[1766588609430,3.39,121.82,121.73,3.46]
[1766588609626,3.39,121.8,121.72,96.94]
[1766588609930,0.0604232,121.77,121.75,0.05335976]
[1766588610825,10.7825,121.82,121.75,0.05335976]
[1766588611523,10.8432,121.81,121.75,0.05335976]
[1766588611722,3.50216379,121.79,121.75,0.05335976]
[1766588612523,0.05216379,121.79,121.75,0.05335976]
[1766588613829,0.00216379,121.79,121.75,3.35335976]
[1766588614833,3.45,121.85,121.75,3.35335976]
[1766588614834,10.8407,121.85,121.76,10.6956]
[1766588615228,3.45,121.84,121.74,3.3]
[1766588615634,0.05770381,121.8,121.74,3.3]
[1766588615832,0.05770381,121.8,121.78,0.06120003]
[1766588616553,3.45,121.84,121.78,0.06120003]
[1766588617123,10.8413,121.84,121.78,0.06120003]
[1766588617537,0.05434326,121.82,121.78,0.06120003]
[1766588623628,0.00434326,121.82,121.78,3.62120003]
[1766588624036,0.00434326,121.82,121.78,11.01580003]
[1766588625639,0.00434326,121.82,121.78,0.06120003]
[1766588625847,3.31434326,121.82,121.78,0.06120003]
[1766588626140,3.31434326,121.82,121.78,0.00120003]
[1766588626336,3.31,121.81,121.78,0.00120003]
[1766588626535,3.31,121.8,121.73,3.56]
[1766588626740,3.31,121.8,121.7,100.52]
[1766588627236,10.7046,121.79,121.71,10.9586]
[1766588627435,0.0537091,121.76,121.74,0.05661283]
[1766588630440,3.3637091,121.76,121.7,96.96]
[1766588630851,3.3637091,121.76,121.67,3.56]
[1766588631148,7.3967,121.75,121.67,10.9611]
[1766588631339,3.31,121.76,121.68,3.56]
[1766588631545,0.05432185,121.72,121.7,0.06206943]
[1766588633747,0.05432185,121.72,121.66,96.96]
[1766588634841,0.05432185,121.72,121.68,0.05695616]
[1766588635640,3.31,121.71,121.63,3.56]
[1766588636152,3.31,121.71,121.63,10.9637]
[1766588636643,3.31,121.71,121.66,0.06201375]
[1766588636849,0.06295847,121.68,121.66,0.06201375]
[1766588638038,0.06295847,121.68,121.61,107.9447]
[1766588639062,0.06295847,121.68,121.63,0.05821053]
[1766588639250,3.37295847,121.68,121.63,0.05821053]
[1766588639645,0.06295847,121.68,121.63,0.05821053]
[1766588640454,0.06295847,121.68,121.59,115.2043]
[1766588640455,3.37295847,121.68,121.59,10.966]
[1766588640750,3.31,121.65,121.54,3.56]
[1766588640956,3.31,121.64,121.54,3.56]
[1766588641141,3.31,121.64,121.54,65.56]
[1766588641755,0.0011473,121.6,121.58,0.06057222]
[1766588643448,3.31,121.64,121.58,0.06057222]
[1766588643641,3.53,121.67,121.59,3.27]
[1766588644140,3.53,121.67,121.59,10.6759]
[1766588644355,3.53,121.66,121.56,118.5057]
[1766588644652,0.05335413,121.62,121.6,0.00027184]
[1766588644850,3.53,121.64,121.6,0.00027184]
[1766588645650,0.05874818,121.63,121.6,0.00027184]
[1766588648247,3.53,121.67,121.6,3.27027184]
[1766588648650,3.53,121.67,121.6,0.00027184]
[1766588648951,212.1976,121.69,121.6,0.00027184]
[1766588648952,3.53,121.65,121.6,0.00027184]
[1766588649148,3.53,121.65,121.58,10.6765]
[1766588649458,0.06191623,121.63,121.6,0.06149627]
[1766588652262,0.00191623,121.63,121.6,3.33149627]
[1766588652466,0.00191623,121.63,121.61,3.27]
[1766588652855,0.00191623,121.63,121.6,0.06149627]
[1766588656966,0.00191623,121.63,121.6,3.33149627]
[1766588657358,0.00191623,121.63,121.6,0.06149627]
[1766588663669,3.53191623,121.63,121.56,3.27]
[1766588663874,3.53191623,121.63,121.54,3.27]
[1766588663875,10.9347,121.62,121.54,3.27]
[1766588664074,3.53,121.61,121.54,3.27]
[1766588664268,3.53,121.59,121.52,100.37]
[1766588664668,0.0550323,121.57,121.54,0.06006793]
[1766588669464,3.5850323,121.57,121.5,3.27]
[1766588670469,3.5850323,121.57,121.47,97.12]
[1766588670470,7.4089,121.55,121.52,0.06297398]
[1766588670671,7.46832891,121.55,121.48,3.27]
[1766588670982,0.05942891,121.55,121.48,3.27]
[1766588671677,3.43,121.6,121.5,3.56166979]
[1766588671877,100.55,121.6,121.5,3.5]
[1766588672480,100.55,121.6,121.52,3.5]
[1766588672673,0.05464573,121.57,121.55,0.06136634]
[1766588673668,0.00464573,121.57,121.55,0.06136634]
[1766588676679,0.00464573,121.57,121.52,3.5]
[1766588677680,0.00464573,121.57,121.53,3.42439878]
[1766588677880,0.00155604,121.56,121.53,3.42439878]
[1766588678080,0.00155604,121.56,121.53,3.37]
[1766588678778,0.00155604,121.56,121.53,0.05842509]
[1766588683287,3.54,121.62,121.53,3.42842509]
[1766588683486,4.9555801,121.62,121.53,3.37]
[1766588683985,3.54,121.62,121.53,3.37]
[1766588684480,0.05266586,121.59,121.56,0.05506485]
[1766588690089,0.00266586,121.59,121.56,3.42506485]
[1766588690295,97.14,121.64,121.56,3.42506485]
[1766588690588,97.14,121.64,121.56,3.37]
[1766588691387,0.06038598,121.61,121.59,0.05858411]
[1766588692077,0.00038598,121.61,121.59,3.42858411]
[1766588692283,97.14,121.64,121.59,3.42858411]
[1766588692787,10.9414,121.68,121.59,3.42858411]
[1766588692989,10.9414,121.68,121.59,3.37]
[1766588693493,108.08,121.7,121.62,3.43298012]
[1766588693681,108.08,121.7,121.62,3.37]
[1766588693879,10.9405,121.69,121.62,3.37]
[1766588694077,3.54,121.69,121.62,3.37]
[1766588694288,3.54,121.68,121.58,3.37]
[1766588694480,3.54,121.68,121.62,0.05572706]
[1766588694481,0.06008065,121.64,121.62,0.05572706]
[1766588695092,3.60008065,121.64,121.56,10.7777]
[1766588695391,3.54,121.64,121.57,3.37]
[1766588695893,7.4041,121.63,121.57,3.37]
[1766588696083,0.05624492,121.61,121.59,0.05984426]
[1766588698284,108.0829,121.65,121.59,0.05984426]
[1766588698583,100.68,121.65,121.59,0.05984426]
[1766588698778,7.4041,121.63,121.59,0.05984426]
[1766588698986,10.9441,121.63,121.59,0.05984426]
[1766588699286,0.05556065,121.62,121.59,0.05984426]
[1766588701185,7.46026065,121.62,121.56,3.37]
[1766588702286,7.46026065,121.62,121.58,0.05452916]
[1766588704190,0.05556065,121.62,121.58,0.05452916]
[1766588705188,0.05556065,121.62,121.58,3.37452916]
[1766588705392,104.5429,121.65,121.58,3.37452916]
[1766588705987,10.8917,121.67,121.59,3.32]
[1766588706495,0.05177701,121.64,121.62,0.0618481]
[1766588706695,0.05177701,121.64,121.62,0.0018481]
[1766588714002,10.94527701,121.64,121.62,0.0018481]
[1766588714204,3.49,121.63,121.55,3.32]
[1766588714400,118.6743,121.62,121.55,3.32]
[1766588714596,3.49,121.61,121.55,3.32]
[1766588715305,0.06289638,121.59,121.57,0.0542656]
[1766588718197,3.55289638,121.59,121.52,100.44]
[1766588719198,3.55289638,121.59,121.54,0.05821631]
[1766588719706,10.95929638,121.59,121.54,0.05821631]
[1766588720398,3.49,121.58,121.54,0.05821631]
[1766588721501,7.46929638,121.59,121.54,0.05821631]
[1766588721709,10.95929638,121.59,121.54,0.05821631]
[1766588723011,3.55289638,121.59,121.54,0.05821631]
[1766588725614,10.95939638,121.59,121.54,0.05821631]
[1766588726319,7.46939638,121.59,121.54,3.37821631]
[1766588726717,0.06289638,121.59,121.54,3.37821631]
[1766588729120,97.12,121.62,121.54,3.37821631]
[1766588729311,3.49,121.64,121.55,3.32]
[1766588729821,10.8934,121.64,121.57,10.7274]
[1766588730215,0.05444326,121.62,121.59,0.05754675]
[1766588735326,0.00444326,121.62,121.59,3.49754675]
[1766588735521,0.00444326,121.62,121.59,0.05754675]
[1766588736919,10.7097,121.7,121.62,3.37]
[1766588737129,3.31,121.7,121.62,3.37]
[1766588737325,3.31,121.7,121.62,10.7743]
[1766588737625,3.31,121.7,121.63,3.37]
[1766588737834,0.05340201,121.68,121.65,0.05319202]
[1766588738921,3.36340201,121.68,121.65,0.00319202]
[1766588739832,3.31,121.67,121.59,3.37]
[1766588740635,3.31,121.66,121.59,3.37]
[1766588740838,0.05170428,121.64,121.61,0.05512582]
[1766588741234,3.36170428,121.64,121.57,97.12]
[1766588741930,3.31,121.63,121.57,97.12]
[1766588742327,0.05221556,121.61,121.59,0.05772262]
[1766588743028,0.00221556,121.61,121.59,0.05772262]
[1766588747030,0.00221556,121.61,121.57,97.12]
[1766588747232,3.31221556,121.61,121.52,3.37]
[1766588747436,3.31,121.61,121.52,3.37]
[1766588747834,10.7159,121.6,121.52,10.7801]
[1766588748138,0.05519759,121.57,121.55,0.05367851]
[1766588750240,0.05519759,121.57,121.55,0.00367851]
[1766588751433,7.4049,121.62,121.55,3.37367851]
[1766588752231,107.8337,121.64,121.55,3.37367851]
[1766588752431,0.05545269,121.61,121.58,0.05409475]
[1766588756850,10.7125,121.66,121.58,3.42409475]
[1766588757037,10.7125,121.66,121.58,3.37]
[1766588757239,10.7125,121.66,121.59,3.37]
[1766588757745,0.05563483,121.64,121.61,0.05925013]
[1766588759948,7.4016,121.67,121.61,3.42925013]
[1766588760546,10.7124,121.66,121.61,0.05925013]
[1766588760937,3.37071452,121.65,121.58,3.37]
[1766588762245,3.37071452,121.65,121.6,0.05317016]
[1766588762638,10.77361452,121.65,121.6,0.05317016]
[1766588763240,3.3,121.64,121.6,0.05317016]
[1766588763441,3.3,121.64,121.56,100.65]
[1766588763743,3.3,121.64,121.56,97.12]
[1766588764340,10.7047,121.62,121.56,97.12]
[1766588764540,10.7047,121.62,121.54,3.53]
[1766588764541,3.3,121.62,121.54,3.53]
[1766588764844,10.76154139,121.59,121.52,100.65]
[1766588765548,3.35514139,121.59,121.52,100.65]
[1766588765950,3.35514139,121.59,121.54,0.06229691]
[1766588768756,10.76154139,121.59,121.54,0.06229691]
[1766588769156,3.35514139,121.59,121.54,0.06229691]
[1766588769352,0.05514139,121.59,121.54,3.59229691]
[1766588770752,0.05514139,121.59,121.54,11.00159691]
[1766588771953,0.05514139,121.59,121.55,3.53]
[1766588773451,3.35514139,121.59,121.54,0.06229691]
[1766588774154,10.76174139,121.59,121.54,0.06229691]
[1766588774359,3.3,121.58,121.54,0.00229691]
[1766588776963,0.05514139,121.59,121.54,0.00229691]
[1766588777456,0.05514139,121.59,121.54,10.94149691]
[1766588777848,0.05514139,121.59,121.54,0.00229691]
[1766588778053,3.35514139,121.59,121.54,0.00229691]
[1766588778345,10.76154139,121.59,121.54,0.00229691]
[1766588778550,3.3,121.58,121.54,0.00229691]
[1766588780555,10.7071,121.58,121.54,0.00229691]
[1766588783165,7.4076,121.57,121.54,0.00229691]
[1766588784259,104.60194139,121.59,121.54,0.00229691]
[1766588784562,10.76194139,121.59,121.54,0.00229691]
[1766588788257,0.05514139,121.59,121.54,0.00229691]
[1766588788464,3.3,121.63,121.54,0.00229691]
[1766588788659,3.3,121.63,121.53,3.53]
[1766588789564,0.05798706,121.59,121.57,0.05898457]
[1766588793265,3.38798706,121.59,121.53,10.9195]
[1766588793467,3.33,121.59,121.53,10.9195]
[1766588793861,3.33,121.59,121.53,3.51]
[1766588794059,4.74539735,121.59,121.53,3.51]
[1766588794259,0.05301404,121.57,121.55,0.05610803]
[1766588794773,0.05301404,121.57,121.51,97.14]
[1766588794774,4.79841139,121.57,121.51,97.14]
[1766588795772,4.79841139,121.57,121.53,0.06059581]
[1766588796466,3.33,121.56,121.53,0.00059581]
[1766588796764,4.82539735,121.55,121.48,3.32]
[1766588796964,4.82539735,121.53,121.45,3.32]
[1766588797159,3.41,121.52,121.45,3.32]
[1766588797374,4.82539735,121.51,121.44,97.14]
[1766588797574,0.05546857,121.49,121.46,0.06090631]
[1766588802071,7.4104,121.53,121.46,3.38090631]
[1766588802473,10.8204,121.53,121.46,3.38090631]
[1766588803078,3.46283034,121.51,121.46,0.06090631]
[1766588803273,118.75203034,121.51,121.46,0.06090631]
[1766588803578,3.41,121.5,121.46,0.06090631]
[1766588804974,10.822,121.5,121.46,0.00090631]
[1766588805178,212.5062,121.49,121.42,5.04701887]
[1766588805577,115.3146,121.48,121.42,5.04701887]
[1766588806283,0.05349002,121.46,121.42,5.04701887]
[1766588807081,0.05349002,121.46,121.43,0.00121066]
[1766588807285,97.2,121.45,121.39,3.32]
[1766588808174,0.06011811,121.43,121.37,3.32]
[1766588808779,0.06011811,121.43,121.36,104.5999]
[1766588808780,0.06011811,121.43,121.35,3.32]
[1766588808981,104.6152,121.45,121.35,3.32]
[1766588809380,0.06285125,121.41,121.39,0.03486331]
[1766588810081,3.61617176,121.48,121.39,0.03486331]
[1766588810274,97.22,121.47,121.39,3.32]
[1766588810874,97.22,121.47,121.36,115.4237]
[1766588811076,0.05841485,121.43,121.4,0.05268083]
[1766588811385,97.22,121.47,121.4,0.05268083]
[1766588812069,97.22,121.47,121.4,7.47038083]
[1766588812274,0.06072466,121.45,121.4,10.79038083]
[1766588813284,0.06072466,121.45,121.4,3.37268083]
[1766588813579,0.06072466,121.45,121.4,0.05268083]
[1766588813785,0.06072466,121.45,121.35,3.32]
[1766588813978,7.4157,121.44,121.35,10.7407]
[1766588814685,7.4146,121.46,121.38,3.38052623]
[1766588814886,97.24,121.45,121.38,3.32]
[1766588815273,104.6551,121.45,121.38,3.32]
[1766588815483,104.6551,121.45,121.35,3.32]
[1766588815680,115.3539,121.44,121.35,3.32]
[1766588815879,0.05477028,121.41,121.35,3.32]
[1766588816088,97.29477028,121.41,121.35,3.32]
[1766588816788,97.29477028,121.41,121.3,212.7253]